fUST/lending_fUST_20250217
["ID","MTS","AMOUNT","RATE_DAILY","PERIOD"]
[353312673,1739752238507,-220.0,0.00013699,2]
[353312674,1739752238517,-220.0,0.00013699,2]
[353312675,1739752238528,-220.0,0.00013699,2]
[353312676,1739752238542,-220.0,0.00013699,2]
[353312677,1739752238552,-220.0,0.00013699,2]
[353312678,1739752238563,-220.0,0.00013699,2]
[353312679,1739752238572,-220.0,0.00013699,2]
[353312680,1739752238582,-220.0,0.00013699,2]
[353312681,1739752238591,-220.0,0.00013699,2]
[353312682,1739752238606,-220.0,0.00013699,2]
[353312683,1739752238616,-220.0,0.00013699,2]
[353312684,1739752238626,-220.0,0.00013699,2]
[353312685,1739752238636,-220.0,0.00013699,2]
[353312686,1739752238646,-220.0,0.00013699,2]
[353312687,1739752238656,-220.0,0.00013699,2]
[353312688,1739752238666,-153.0,0.00013699,2]
[353312689,1739752238676,-220.0,0.00013699,2]
[353312690,1739752238685,-220.0,0.00013699,2]
[353312691,1739752238695,-220.0,0.00013699,2]
[353312692,1739752238705,-220.0,0.00013699,2]
[353312693,1739752238715,-220.0,0.00013699,2]
[353312694,1739752238726,-220.0,0.00013699,2]
[353312695,1739752238736,-220.0,0.00013699,2]
[353312696,1739752238746,-220.0,0.00013699,2]
[353312697,1739752238756,-220.0,0.00013699,2]
[353312698,1739752238766,-220.0,0.00013699,2]
[353312699,1739752238775,-220.0,0.00013699,2]
[353312700,1739752238786,-220.0,0.00013699,2]
[353312701,1739752238796,-220.0,0.00013699,2]
[353312702,1739752238806,-220.0,0.00013699,2]
[353312703,1739752238816,-153.0,0.00013699,2]
[353312704,1739752238826,-220.0,0.00013699,2]
[353312705,1739752238836,-220.0,0.00013699,2]
[353312706,1739752238845,-220.0,0.00013699,2]
[353312707,1739752238858,-220.0,0.00013699,2]
[353312708,1739752238868,-220.0,0.00013699,2]
[353312709,1739752238879,-220.0,0.00013699,2]
[353312710,1739752238888,-220.0,0.00013699,2]
[353312711,1739752238897,-220.0,0.00013699,2]
[353312712,1739752238907,-220.0,0.00013699,2]
[353312713,1739752238918,-220.0,0.00013699,2]
[353312714,1739752238928,-220.0,0.00013699,2]
[353312715,1739752238938,-220.0,0.00013699,2]
[353312716,1739752238947,-220.0,0.00013699,2]
[353312717,1739752238957,-220.0,0.00013699,2]
[353312718,1739752238966,-153.0,0.00013699,2]
[353312719,1739752238976,-500.0,0.000137,2]
[353312720,1739752238986,-403.79260333,0.000137,2]
[353312767,1739752243116,-400.0,0.00010685,2]
[353312769,1739752243126,-1439.78998606,0.00013562,2]
[353312771,1739752243137,-96.20739667,0.000137,2]
[353312773,1739752243146,-503.01449298,0.000137,2]
[353312775,1739752243156,-500.0,0.000137,2]
[353312777,1739752243166,-516.63050703,0.000137,2]
[353312779,1739752243175,-500.0,0.000137,2]
[353312782,1739752243185,-595.96024877,0.00013786,2]
[353312784,1739752243195,-155.0,0.000139,2]
[353312786,1739752243204,-627.599999,0.000139,2]
[353312788,1739752243213,-5100.13663809,0.00014,2]
[353312790,1739752243225,-413.114,0.00014,2]
[353312796,1739752243274,-990.0,0.00014,2]
[353313026,1739752248391,-153.0,0.00013699,2]
[353313027,1739752248401,-153.0,0.00013699,2]
[353313028,1739752248412,-153.0,0.00013699,2]
[353313029,1739752248422,-153.0,0.00013699,2]
[353313030,1739752248434,-153.0,0.00013699,2]
[353313031,1739752248447,-153.0,0.00013699,2]
[353313032,1739752248456,-153.0,0.00013699,2]
[353313033,1739752248466,-153.0,0.00013699,2]
[353313034,1739752248475,-2558.727,0.00014,2]
[353313035,1739752248487,-2958.40607684,0.00014,2]
[353313036,1739752248500,-113219.30271879,0.00014,2]
[353313037,1739752248510,-1007.5764988,0.00014247,2]
[353313038,1739752248522,-1000.0,0.00014248,2]
[353313039,1739752248532,-500.0,0.00014248,2]
[353313040,1739752248541,-1000.0,0.00014248,2]
[353313041,1739752248551,-1000.0,0.00014248,2]
[353313042,1739752248561,-151.0,0.000143,2]
[353313043,1739752248571,-151.0,0.000143,2]
[353313044,1739752248582,-4517.4321426,0.000144,2]
[353313045,1739752248592,-494.0,0.000144,2]
[353313046,1739752248604,-151.0,0.000144,2]
[353313047,1739752248616,-151.0,0.000144,2]
[353313048,1739752248627,-151.0,0.000144,2]
[353313049,1739752248636,-151.0,0.000144,2]
[353313050,1739752248647,-151.0,0.000144,2]
[353313051,1739752248657,-151.0,0.000144,2]
[353313052,1739752248667,-152.0,0.00014422,2]
[353313053,1739752248677,-24774.6415744,0.00014499,15]
[353313054,1739752248687,-500.0,0.00014499,2]
[353313055,1739752248697,-10000.0,0.000145,2]
[353313056,1739752248707,-224320.56415378,0.000145,2]
[353313057,1739752248717,-151.0,0.000145,2]
[353313058,1739752248727,-151.0,0.000145,2]
[353313059,1739752248738,-151.0,0.000145,2]
[353313060,1739752248748,-605.0,0.000145,5]
[353313061,1739752248758,-151.0,0.000145,2]
[353313062,1739752248768,-500.0,0.000145,2]
[353313063,1739752248778,-299.0,0.0001452,2]
[353313064,1739752248788,-151.0,0.000146,2]
[353313065,1739752248798,-151.0,0.000146,2]
[353313066,1739752248808,-151.0,0.000146,2]
[353313067,1739752248819,-2000.0,0.000146,2]
[353313068,1739752248829,-2000.0,0.000146,2]
[353313069,1739752248839,-151.0,0.000146,2]
[353313070,1739752248849,-151.0,0.000146,2]
[353313071,1739752248859,-500.0,0.00014636,2]
[353313072,1739752248872,-5635.39521661,0.000147,2]
[353313073,1739752248883,-151.0,0.000147,2]
[353313074,1739752248893,-151.0,0.000147,2]
[353313075,1739752248904,-151.0,0.000147,2]
[353313076,1739752248914,-151.0,0.000147,2]
[353313077,1739752248925,-500.0,0.00014773,2]
[353313078,1739752248935,-162.03771447,0.00014773,2]
[353313079,1739752248945,-160.0,0.00014773,2]
[353313080,1739752248955,-500.0,0.00014773,2]
[353313081,1739752248966,-500.0,0.00014773,2]
[353313082,1739752248976,-500.0,0.00014774,2]
[353313083,1739752248986,-195.0,0.00014789,2]
[353313084,1739752248996,-31977.11389991,0.000148,5]
[353313085,1739752249006,-8005.5385565,0.000148,5]
[353313086,1739752249017,-151.0,0.000148,2]
[353313087,1739752249027,-353.03104084,0.000148,2]
[353313088,1739752249037,-353.03104084,0.000148,2]
[353313089,1739752249047,-353.03104084,0.000148,2]
[353313090,1739752249056,-353.03104084,0.000148,2]
[353313091,1739752249066,-353.03104084,0.000148,2]
[353313092,1739752249076,-353.03104084,0.000148,2]
[353313093,1739752249086,-353.03104084,0.000148,2]
[353313094,1739752249096,-353.03104084,0.000148,2]
[353313095,1739752249105,-353.03104084,0.000148,2]
[353313096,1739752249117,-353.03104084,0.000148,2]
[353313097,1739752249128,-353.03104084,0.000148,2]
[353313098,1739752249138,-353.03104084,0.000148,2]
[353313099,1739752249148,-353.03104084,0.000148,2]
[353313100,1739752249157,-353.03104084,0.000148,2]
[353313101,1739752249167,-353.03104084,0.000148,2]
[353313102,1739752249177,-353.03104084,0.000148,2]
[353313103,1739752249187,-353.03104084,0.000148,2]
[353313104,1739752249198,-353.03104084,0.000148,2]
[353313105,1739752249207,-353.03104084,0.000148,2]
[353313106,1739752249218,-353.03,0.000148,2]
[353313107,1739752249228,-496.01077091,0.000148,2]
[353313108,1739752249238,-496.01077091,0.000148,2]
[353313109,1739752249248,-496.01077091,0.000148,2]
[353313110,1739752249257,-496.01077091,0.000148,2]
[353313111,1739752249267,-496.01077091,0.000148,2]
[353313112,1739752249276,-496.01077091,0.000148,2]
[353313113,1739752249287,-496.01077091,0.000148,2]
[353313114,1739752249297,-496.01077091,0.000148,2]
[353313115,1739752249307,-496.01077091,0.000148,2]
[353313116,1739752249316,-496.01077091,0.000148,2]
[353313117,1739752249326,-496.01077091,0.000148,2]
[353313118,1739752249336,-496.01077091,0.000148,2]
[353313119,1739752249346,-496.01077091,0.000148,2]
[353313120,1739752249356,-496.01077091,0.000148,2]
[353313121,1739752249366,-496.01077091,0.000148,2]
[353313122,1739752249377,-496.01077091,0.000148,2]
[353313123,1739752249386,-496.01077091,0.000148,2]
[353313124,1739752249396,-496.01077091,0.000148,2]
[353313125,1739752249407,-496.01077091,0.000148,2]
[353313126,1739752249416,-496.01,0.000148,2]
[353313127,1739752249427,-3000.0,0.000148,2]
[353313128,1739752249439,-151.0,0.000148,2]
[353313129,1739752249449,-151.0,0.000148,2]
[353313130,1739752249460,-10835.74110375,0.000148,2]
[353313131,1739752249471,-13001.2591887,0.000148,2]
[353313132,1739752249481,-1000.09686067,0.00014819,2]
[353313133,1739752249491,-20000.0,0.00014829,2]
[353313134,1739752249500,-7460.63930652,0.0001485,10]
[353313135,1739752249511,-500.0,0.00014873,2]
[353313136,1739752249522,-500.0,0.00014873,2]
[353313137,1739752249532,-500.0,0.00014873,2]
[353313138,1739752249543,-500.0,0.00014873,2]
[353313139,1739752249552,-521.9751967,0.00014873,2]
[353313140,1739752249562,-500.0,0.00014873,2]
[353313141,1739752249572,-330.57693659,0.00014873,2]
[353313142,1739752249582,-500.0,0.00014873,2]
[353313143,1739752249592,-500.0,0.00014873,2]
[353313144,1739752249602,-163.26223119,0.00014873,2]
[353313145,1739752249613,-500.0,0.00014873,2]
[353313146,1739752249624,-500.0,0.00014873,2]
[353313147,1739752249634,-261.60469248,0.00014873,2]
[353313148,1739752249643,-430.97941006,0.00014873,2]
[353313149,1739752249653,-1000.09686067,0.0001488,2]
[353313150,1739752249664,-1550.380244,0.0001489,2]
[353313151,1739752249673,-1550.380244,0.0001489,2]
[353313152,1739752249683,-151.0,0.0001489,2]
[353313153,1739752249693,-151.0,0.0001489,2]
[353313154,1739752249703,-772.283621,0.0001489,2]
[353313155,1739752249712,-772.283621,0.0001489,2]
[353313156,1739752249723,-2409.380206,0.0001489,2]
[353313157,1739752249733,-2409.380206,0.0001489,2]
[353313158,1739752249743,-5000.48430335,0.0001489,2]
[353313159,1739752249753,-160.0,0.00014899,2]
[353313160,1739752249763,-568.35887242,0.000149,2]
[353313161,1739752249773,-1008.04544933,0.000149,10]
[353313162,1739752249783,-1550.380244,0.000149,2]
[353313163,1739752249793,-1550.380244,0.000149,2]
[353313164,1739752249802,-151.0,0.000149,2]
[353313165,1739752249813,-151.0,0.000149,2]
[353313166,1739752249823,-151.0,0.000149,2]
[353313167,1739752249834,-151.0,0.000149,2]
[353313168,1739752249844,-151.0,0.000149,2]
[353313169,1739752249853,-360.824942,0.000149,2]
[353313170,1739752249864,-360.824942,0.000149,2]
[353313171,1739752249874,-154.252645,0.000149,2]
[353313172,1739752249884,-575.187616,0.000149,2]
[353313173,1739752249894,-154.252645,0.000149,2]
[353313174,1739752249905,-575.187616,0.000149,2]
[353313175,1739752249915,-37329.80555545,0.000149,2]
[353313176,1739752249929,-153792.75998762,0.000149,2]
[353313177,1739752249941,-419.52770081,0.000149,2]
[353313178,1739752459018,3000.0,0.00016413,120]
[353313181,1739753225128,-550.08,8.411e-05,2]
[353313182,1739753225148,-187.92,8.496e-05,2]
[353313183,1739753244114,-237.14169747,8.411e-05,2]
[353313184,1739753345142,-125.01830253,8.411e-05,2]
[353313185,1739753345163,-362.16,8.496e-05,2]
[353313186,1739753345183,-550.08,9.3e-05,2]
[353313187,1739753345208,-11.72833099,0.0001,2]
[353313188,1739753347097,-322.27166901,0.0001,2]
[353313189,1739753347119,-279.44833099,0.000115,3]
[353313190,1739753352108,-322.27166901,9.9e-05,2]
[353313191,1739753352129,-38.35364079,0.000115,3]
[353313218,1739753432285,-16.19802822,0.000115,3]
[353313220,1739753432295,-300.0,0.00012598,2]
[353313222,1739753432305,-300.0,0.00012725,2]
[353313224,1739753432314,-300.0,0.00012854,2]
[353313226,1739753432323,-3989.77212139,0.00012855,2]
[353313237,1739753432425,-3999.2,0.00012855,2]
[353313283,1739753438104,-1157.99174901,0.00012855,2]
[353313285,1739753438114,-334.0,0.00013,4]
[353313288,1739753438125,-1106.19394122,0.0001358,2]
[353313292,1739753438156,-6332.50359156,0.0001358,2]
[353313294,1739753438165,-1686.8,0.000136,2]
[353313296,1739753438176,-2000.0,0.000136,2]
[353313298,1739753438185,-557.53729,0.00013699,2]
[353313300,1739753438194,-153.0,0.00013699,2]
[353313302,1739753438204,-153.0,0.00013699,2]
[353313304,1739753438213,-153.0,0.00013699,2]
[353313306,1739753438222,-153.0,0.00013699,2]
[353313308,1739753438231,-153.0,0.00013699,2]
[353313310,1739753438240,-153.0,0.00013699,2]
[353313312,1739753438249,-153.0,0.00013699,2]
[353313314,1739753438258,-153.0,0.00013699,2]
[353313316,1739753438268,-153.0,0.00013699,2]
[353313318,1739753438277,-153.0,0.00013699,2]
[353313320,1739753438287,-153.0,0.00013699,2]
[353313322,1739753438296,-153.0,0.00013699,2]
[353313324,1739753438305,-153.0,0.00013699,2]
[353313326,1739753438314,-153.0,0.00013699,2]
[353313328,1739753438324,-153.0,0.00013699,2]
[353313330,1739753438333,-153.0,0.00013699,2]
[353313332,1739753438342,-153.0,0.00013699,2]
[353313334,1739753438351,-153.0,0.00013699,2]
[353313338,1739753438371,-153.0,0.00013699,2]
[353313340,1739753438380,-153.0,0.00013699,2]
[353313342,1739753438390,-153.0,0.00013699,2]
[353313344,1739753438400,-153.0,0.00013699,2]
[353313346,1739753438409,-153.0,0.00013699,2]
[353313348,1739753438418,-500.0,0.000137,2]
[353313350,1739753438428,-420.0,0.00014099,2]
[353313352,1739753438438,-183.56254243,0.00014248,2]
[353313354,1739753438450,-364.52002253,0.00014248,2]
[353313357,1739753438466,-451.91743504,0.00014248,2]
[353313359,1739753438475,-334.0,0.000145,5]
[353313361,1739753438485,-311.0,0.0001452,2]
[353313363,1739753438495,-2000.0,0.000146,2]
[353313365,1739753438504,-500.0,0.00014889,2]
[353313367,1739753438514,-169.776,0.00014899,2]
[353313369,1739753438523,-3000.0,0.000149,2]
[353313371,1739753438532,-250.0,0.000149,2]
[353313373,1739753438542,-204.58,0.000149,2]
[353313375,1739753438551,-157.09,0.000149,2]
[353313378,1739753438561,-314.0,0.000149,2]
[353313380,1739753438570,-94.18976953,0.000149,2]
[353313382,1739753438582,-219.81023047,0.000149,2]
[353313384,1739753438591,-259.34794291,0.000149,2]
[353313386,1739753438601,-554.42716033,0.000149,2]
[353313388,1739753438612,-1013.67909539,0.000149,2]
[353313563,1739753440467,-500.0,0.00012727,2]
[353314207,1739753448836,-314.32,0.000126,2]
[353314289,1739754348139,-477.72638566,8.582e-05,2]
[353314290,1739754428084,-495.34622056,8.757e-05,2]
[353314291,1739754428106,-495.34622056,8.845e-05,2]
[353314292,1739754428127,-495.34622056,8.934e-05,2]
[353314293,1739754428314,-495.07,9.3e-05,2]
[353314294,1739754428337,-300.0,0.0001,2]
[353314295,1739754428360,-400.0,0.00010685,2]
[353314296,1739754428383,-300.0,0.000115,3]
[353314297,1739754428405,-250.0,0.000117,2]
[353314298,1739754428428,-300.0,0.00012532,2]
[353314299,1739754428450,-7311.10612169,0.00012533,2]
[353314300,1739754438114,-495.34622056,8.669e-05,2]
[353314301,1739754438138,-127.59141109,0.00012533,2]
[353314302,1739754438160,-6234.51852797,0.00012833,2]
[353314305,1739754550097,-495.34622056,8.496e-05,2]
[353314306,1739754550121,-445.2022644,8.582e-05,2]
[353314307,1739754550154,-50.14395616,8.582e-05,2]
[353314311,1739754583855,445.56,9.3e-05,2]
[353314382,1739754632542,-400.0,0.00010685,2]
[353314384,1739754632552,-482.72353148,0.00012377,2]
[353314395,1739754632654,-374.05366051,0.00012377,2]
[353314397,1739754632665,-463.04724669,0.00012377,2]
[353314400,1739754632677,-962.0,0.00012377,2]
[353314402,1739754632689,-132.99563742,0.00012377,2]
[353314404,1739754632698,-310.85275914,0.00012502,2]
[353314406,1739754632710,-2103.96731696,0.00012502,2]
[353314408,1739754632719,-2414.8200761,0.00012629,2]
[353314410,1739754632729,-7438.69753278,0.00012629,2]
[353314412,1739754632738,-578.08793779,0.00012833,2]
[353314415,1739754632750,-2499.999995,0.00012833,2]
[353314417,1739754632761,-1927.16,0.00012833,2]
[353314419,1739754632772,-480.04208324,0.00012833,2]
[353314421,1739754632781,-293.3193196,0.00012901,2]
[353314423,1739754632792,-300.0,0.00013,4]
[353314425,1739754632802,-1658.21390583,0.00013,15]
[353314935,1739754638382,-405.20767799,0.00013,15]
[353314938,1739754638393,-2442.54494897,0.00013,15]
[353315490,1739754643689,-976.66,0.00013,15]
[353316116,1739755632136,-369.85910114,8.411e-05,2]
[353316117,1739755643100,-32.85089886,8.411e-05,2]
[353316118,1739755643120,-402.71,8.496e-05,2]
[353316119,1739755643142,-402.71,9.3e-05,2]
[353316120,1739755643162,-2511.33579611,0.0001,2]
[353316121,1739755643189,-3124.1505916,0.0001,2]
[353316124,1739755749087,-430.35,9.4e-05,2]
[353316125,1739755749109,-1803.21114507,9.801e-05,2]
[353316126,1739755749132,-1803.21114507,9.9e-05,2]
[353316127,1739755749154,-300.0,9.999e-05,2]
[353316128,1739755749176,-1803.21114507,0.0001,2]
[353316129,1739755749197,-7438.69753278,0.0001,2]
[353316130,1739755749219,-400.0,0.00010685,2]
[353316131,1739755749241,-420.0,0.00010999,2]
[353316132,1739755749263,-13439.13235246,0.00012145,2]
[353316133,1739755749292,-633.32197144,0.00012145,2]
[353316134,1739755756952,366.192192,0.0001229,2]
[353316135,1739755764742,366.192192,0.0001229,2]
[353316136,1739755772776,366.192192,0.0001229,2]
[353316137,1739755780696,366.192192,0.0001229,2]
[353316140,1739755789345,366.192192,0.0001229,2]
[353316141,1739755797286,366.192192,0.0001229,2]
[353316142,1739755804900,6207.4021071,9.496e-05,2]
[353316143,1739755805327,366.192192,0.0001229,2]
[353316145,1739755813162,366.192192,0.0001229,2]
[353316146,1739755821257,366.192192,0.0001229,2]
[353316147,1739755823222,375.89938663,0.00012144,2]
[353316148,1739755829671,366.192192,0.0001229,2]
[353316162,1739755832753,-366.192192,0.00012414,2]
[353316163,1739755832766,-2521.07454287,0.0001253,2]
[353316164,1739755832964,-2140.61115745,0.0001253,2]
[353316175,1739755838645,-380.26151072,0.00012404,2]
[353316177,1739755838657,-2396.75032174,0.00012404,2]
[353316179,1739755838667,-2777.01183246,0.0001253,2]
[353316181,1739755838677,-396.937,0.00012788,2]
[353316183,1739755838690,-6423.3772242,0.00013,15]
[353316184,1739755838701,-349.0,0.00013,2]
[353316185,1739755838711,-349.0,0.00013,2]
[353316186,1739755838722,-349.0,0.00013,2]
[353316187,1739755838732,-349.0,0.00013,2]
[353316188,1739755838741,-349.0,0.00013,2]
[353316189,1739755838751,-252.06,0.00013,2]
[353316190,1739755838760,-355.0671123,0.0001304,2]
[353316191,1739755838771,-355.0671123,0.0001304,2]
[353316192,1739755838781,-355.0671123,0.0001304,2]
[353316193,1739755838791,-355.0671123,0.0001304,2]
[353316194,1739755838800,-169.49888895,0.0001304,2]
[353316195,1739755838813,-185.56822335,0.0001304,2]
[353316196,1739755838823,-86.41318692,0.0001304,2]
[353316197,1739755838834,-268.65392538,0.0001304,2]
[353316198,1739755838844,-355.0671123,0.0001304,2]
[353316199,1739755838854,-355.0671123,0.0001304,2]
[353316200,1739755838863,-355.0671123,0.0001304,2]
[353316201,1739755838873,-355.0671123,0.0001304,2]
[353316202,1739755838883,-355.0671123,0.0001304,2]
[353316203,1739755838892,-355.0671123,0.0001304,2]
[353316204,1739755838902,-355.0671123,0.0001304,2]
[353316205,1739755838911,-348.4042756,0.0001304,2]
[353316206,1739755838921,-355.0671123,0.00013082,2]
[353316207,1739755838931,-500.0,0.0001345,2]
[353316208,1739755838940,-500.0,0.0001345,2]
[353316209,1739755838950,-2000.0,0.000136,2]
[353316210,1739755838960,-152.0,0.00013621,2]
[353316211,1739755838969,-500.0,0.00013698,2]
[353316212,1739755838978,-464.60045035,0.00013699,2]
[353316213,1739755838991,-437.05499865,0.00013699,2]
[353316214,1739755839000,-153.0,0.00013699,2]
[353316215,1739755839009,-153.0,0.00013699,2]
[353316216,1739755839020,-153.0,0.00013699,2]
[353316217,1739755839029,-153.0,0.00013699,2]
[353316218,1739755839039,-153.0,0.00013699,2]
[353316219,1739755839048,-153.0,0.00013699,2]
[353316220,1739755839057,-153.0,0.00013699,2]
[353316221,1739755839066,-446.029832,0.00013699,2]
[353316222,1739755839076,-300.0,0.00013699,2]
[353316223,1739755839085,-500.776409,0.0001378,2]
[353316224,1739755839095,-500.0,0.0001385,2]
[353316225,1739755839104,-491.5349607,0.00013886,2]
[353316226,1739755839114,-19622.53224392,0.00013986,5]
[353316227,1739755839124,-1081.547961,0.00013987,2]
[353316228,1739755839136,-1070.73544788,0.00013987,2]
[353316229,1739755839146,-3872.40738894,0.00013988,2]
[353316230,1739755839156,-177.04,0.00013988,2]
[353316231,1739755839166,-3872.40738894,0.00013989,2]
[353316232,1739755839175,-4253.59335428,0.00013991,5]
[353316233,1739755839185,-2372.30254329,0.00013991,2]
[353316237,1739755840901,-490.40668275,0.00013991,2]
[353316238,1739755840913,-1009.6981629,0.00013991,2]
[353316239,1739755840923,-119.0218371,0.00013995,2]
[353316240,1739755840934,-441.39314169,0.00013995,2]
[353316241,1739755840945,-493.28256153,0.00013995,2]
[353316287,1739755843721,-500.57368079,0.00013995,2]
[353316288,1739755843755,-129.06390701,0.00013995,2]
[353316297,1739755846622,-153.0,0.00013699,2]
[353316298,1739755846773,-1098.58586856,0.00013855,2]
[353316299,1739755846784,-468.94828076,0.00013995,2]
[353316300,1739755846794,-204.66413068,0.00013997,2]
[353316301,1739755882888,387.35,9.8e-05,2]
[353316308,1739756055080,3000.0,0.00016407,120]
[353316361,1739756738115,-348.61,9.227e-05,2]
[353316362,1739756738136,-348.61,9.32e-05,2]
[353316363,1739756738155,-1300.08354218,9.7e-05,2]
[353316364,1739756756093,-2151.65129494,9.507e-05,2]
[353316365,1739756756115,-1448.48151225,9.603e-05,2]
[353316366,1739756829166,-334.96066949,9.507e-05,2]
[353316367,1739756840086,-368.2091132,9.507e-05,2]
[353316368,1739756840109,-703.16978269,9.603e-05,2]
[353316369,1739756840130,-200.81438884,9.7e-05,2]
[353316370,1739756853131,-1950.8369061,9.603e-05,2]
[353316371,1739756853153,-1950.8369061,9.7e-05,2]
[353316372,1739756853322,-400.0,0.00010685,2]
[353316373,1739756853345,-348.61,0.000107,2]
[353316374,1739756853370,-250.0,0.00011009,2]
[353316375,1739756853393,-300.0,0.00012316,2]
[353316376,1739756853416,-6035.01056563,0.00012317,2]
[353316377,1739756854100,-738.0,9.507e-05,2]
[353316380,1739756945129,-1212.8369061,9.412e-05,2]
[353316381,1739756945153,-1212.8369061,9.507e-05,2]
[353316382,1739756945177,-300.0,0.00011852,2]
[353316383,1739756945198,-58843.6284608,0.00011853,2]
[353316384,1739756945219,-17228.54801534,0.00012317,2]
[353316386,1739756959237,-1209.64078236,0.00012194,2]
[353316387,1739756959259,-1526.95254571,0.00012317,2]
[353316423,1739757031956,-313.75,0.00011385,2]
[353316424,1739757031966,-313.75,0.000115,2]
[353316426,1739757031976,-109.48887332,0.00012317,2]
[353316428,1739757031985,-430.31132328,0.00012907,2]
[353316429,1739757031994,-7438.69753278,0.00012922,2]
[353316431,1739757032004,-525.477922,0.00012953,2]
[353316432,1739757032013,-2200.0,0.00013,2]
[353316434,1739757032022,-2311.9197581,0.00013007,2]
[353316436,1739757032031,-420.0,0.00013012,2]
[353316437,1739757032040,-186.954182,0.00013138,2]
[353316439,1739757032049,-532.3689352,0.00013156,2]
[353316440,1739757032058,-186.954182,0.00013159,2]
[353316441,1739757032067,-306.5052362,0.00013178,2]
[353316442,1739757032076,-186.954182,0.00013181,2]
[353316443,1739757032086,-186.954182,0.00013203,2]
[353316444,1739757032099,-1974.018,0.00013324,2]
[353316445,1739757032109,-2296.512,0.00013324,2]
[353316446,1739757032118,-8602.4616042,0.0001358,4]
[353316447,1739757032127,-177.001416,0.000136,4]
[353316448,1739757032137,-430.31132328,0.0001362,2]
[353316449,1739757032146,-451.263012,0.00013699,2]
[353316450,1739757032155,-153.0,0.00013699,2]
[353316451,1739757032165,-153.0,0.00013699,2]
[353316452,1739757032175,-153.0,0.00013699,2]
[353316453,1739757032186,-1000.0,0.000138,2]
[353316454,1739757032194,-1000.0,0.000138,3]
[353316455,1739757032203,-1000.0,0.000138,4]
[353316456,1739757032212,-1002.98,0.000138,5]
[353316457,1739757032221,-2000.0,0.000139,2]
[353316458,1739757032230,-201.0,0.000139,4]
[353316459,1739757032239,-200.67169238,0.000139,7]
[353316460,1739757032249,-228.146,0.000139,2]
[353316461,1739757032261,-609.92183439,0.00013996,2]
[353316462,1739757032271,-1947.6192782,0.00013997,2]
[353316463,1739757032282,-517.8996,0.00013997,2]
[353316464,1739757032291,-517.8996,0.00013997,2]
[353316465,1739757032300,-151.0,0.00013997,2]
[353316466,1739757032309,-962.56934,0.00013997,2]
[353316467,1739757032318,-962.56934,0.00013997,2]
[353316468,1739757032328,-151.0,0.00013997,2]
[353316469,1739757032337,-891.668011,0.00013997,2]
[353316470,1739757032346,-891.668011,0.00013997,2]
[353316471,1739757032355,-5436.689774,0.00013997,2]
[353316472,1739757032364,-425.336199,0.00013997,2]
[353316473,1739757032374,-5436.689774,0.00013997,2]
[353316474,1739757032383,-425.336199,0.00013997,2]
[353316475,1739757032393,-308.752035,0.00013997,2]
[353316476,1739757032402,-308.752035,0.00013997,2]
[353316477,1739757032412,-324.760182,0.00013997,2]
[353316478,1739757032421,-324.760182,0.00013997,2]
[353316479,1739757032430,-151.0,0.00013997,2]
[353316480,1739757032439,-151.0,0.00013997,2]
[353316481,1739757032448,-151.0,0.00013997,2]
[353316482,1739757032457,-161.799106,0.00014,2]
[353316483,1739757032467,-161.799106,0.00014,2]
[353316484,1739757032476,-151.0,0.00014,2]